Cogmind - Beta 17.1 @@@ ROGUE MODE // 2026.09.16 @ 20:14:59 Player: 7H-NLC Result: Heading to fleet! Performance ------------- Evolutions (9) 4500 Regions Visited (25) 5000 Robots Destroyed (320) 1600 Value Destroyed (19367) 19367 Prototype IDs (89) 1780 Alien Tech Used (14) 2800 Bonus (29822) 29822 TOTAL SCORE: 64869 Bonus ------- Triggered Max Security 2000 High Alert Combat Kills 11314 Follower Combat Kills 5455 Network Hubs Disabled 200 Registered with UFD 300 Met Optimus in HQ 500 Met Data Miner 300 Met Zhirov 300 A7 Reached Mainframe 300 Found Hidden Lab 3000 Used Core Reset Matrix 3000 Scanned by Researcher 500 Integrated Exoskeleton 5000 Win 3000 Friendly Fire -5347 Cogmind --------- Core Integrity 18/1600 Matter 300/300 Energy 534/540 System Corruption 29% Temperature Cool (2) Movement Walking (76) Location To Fleet Rendezvous Parts ------- > --- POWER (1+1) ------ Light Quantum Reactor (+) Improved Quantum Reactor > --- PROPULSION (3+2) - Enhanced Biometal Leg (+) Enhanced Biometal Leg (+) Sigix Exoskeleton > --- UTILITY (8+2) ---- Experimental Heat Sink Medium Storage Unit Experimental Targeting Computer (+) Experimental Core Analyzer (+) Experimental Core Analyzer Advanced Weapon Cycler Experimental Reaction Control System Tower Shield Graphene Brace > --- WEAPON (2+2) ----- Sigix Sheargun (+) Sigix Sheargun (+) Sigix Sheargun Sigix Sheargun > --- INVENTORY (10) --- Experimental Reaction Control System Spacefold Activator Warp Cannon Warp Cannon LU-1G1's Laser Shovel DM-GVY's Chainsaw Peak State ------------ > --- POWER ------------ Light Quantum Reactor Improved Quantum Reactor > --- PROPULSION ------- Enhanced Biometal Leg Enhanced Biometal Leg Sigix Exoskeleton > --- UTILITY ---------- Experimental Heat Sink Medium Storage Unit Experimental Targeting Computer Experimental Core Analyzer Advanced Weapon Cycler Experimental Reaction Control System Tower Shield Graphene Brace Spacefold Activator > --- WEAPON ----------- Sigix Sheargun Sigix Sheargun Sigix Sheargun Sigix Sheargun > --- INVENTORY -------- Experimental Core Analyzer Transdimensional Reconstructor Sigix Sheargun Warp Cannon Warp Cannon Sigix Terminator LU-1G1's Laser Shovel Voltaic Drivehammer DM-GVY's Chainsaw [Rating: 336] Favorites ----------- Power Light Ion Engine Engine Light Ion Engine Power Core Neutrino Core Reactor Quantum Reactor Propulsion Compact Wheel Treads Centrium Heavy Treads Leg Enhanced Biometal Leg Wheel Compact Wheel Hover Unit Antigrav System Flight Unit Impulse Thruster Array Utility Huge Storage Unit Device Improved Transmission Jammer Storage Huge Storage Unit Processor Improved Target Analyzer Hackware Advanced Hacking Suite Protection Enhanced Scrap Shield Artifact Spacefold Activator Weapon Advanced KE Penetrator Energy Gun Sigix Sheargun Energy Cannon Subdweller Beam Cannon Ballistic Gun Advanced KE Penetrator Ballistic Cannon Battle Cannon Launcher Grenade Launcher Special Weapon Mining Laser Slashing Weapon DM-GVY's Chainsaw Special Melee Weapon Datajack Build | -11 -10 -10 -8 -8 -6 -6 -6 -5 -5 -5 -5 -5 -5 -4 -4 -4 -4 -3 -3 -3 -3 -2 -2 -2 -1 ------- Run | Yrd Mat Sub Rec Scr Fac Low Dat Pro Fac Ext Cet Arc Hub Fac Upp Upp Zhi Pro Res Arm Lab Res Qua Sec Acc Slots Evolved 18 | . . . . . 8 . . . 2 . . . . 2 . . . . 2 . . 2 . . 2 Power . | . . . . . . . . . . . . . . . . . . . . . . 1 . . -1 Propulsion 3 | . . . . . 2 . . . . . . . . 2 . . . . . . . . . . -1 Utility 14 | . . . . . 6 . . . 2 . . . . . . . . . 1 . . 1 . . 4 Weapon 1 | . . . . . . . . . . . . . . . . . . . 1 . . . . . . Parts Attached 215 | 8 2 13 1 33 5 3 . 3 8 4 19 3 3 2 2 . 4 11 4 . 4 3 12 61 7 Power 19 | 2 . 1 . 2 . . . . . 1 2 . . . 1 . 1 1 . . . 1 1 6 . Engine 3 | 2 . 1 . . . . . . . . . . . . . . . . . . . . . . . Core 3 | . . . . 2 . . . . . 1 . . . . . . . . . . . . . . . Reactor 13 | . . . . . . . . . . . 2 . . . 1 . 1 1 . . . 1 1 6 . Propulsion 37 | 2 . 3 . 9 1 . . . . . 2 1 . 1 . . 2 2 . . . . 1 13 . Treads 12 | . . 2 . 1 . . . . . . 2 1 . . . . 1 . . . . . . 5 . Leg 10 | . . . . 4 . . . . . . . . . . . . 1 2 . . . . . 3 . Wheel 8 | 2 . 1 . 2 1 . . . . . . . . 1 . . . . . . . . 1 . . Hover 2 | . . . . 2 . . . . . . . . . . . . . . . . . . . . . Flight 5 | . . . . . . . . . . . . . . . . . . . . . . . . 5 . Utility 101 | 2 1 2 . 15 2 2 . 1 7 2 9 2 2 1 1 . 1 4 3 . 2 2 5 31 4 Device 52 | 1 . . . 12 1 1 . 1 2 . 2 2 . 1 1 . . 3 . . 1 2 3 16 3 Storage 11 | 1 1 1 . 1 . 1 . . . 1 1 . . . . . . . . . . . . 4 . Processor 14 | . . . . . . . . . . 1 2 . . . . . . 1 2 . . . 1 6 1 Hackware 7 | . . . . . . . . . 3 . . . 2 . . . . . 1 . . . 1 . . Protection 15 | . . 1 . 2 1 . . . 2 . 4 . . . . . 1 . . . 1 . . 3 . Artifact 2 | . . . . . . . . . . . . . . . . . . . . . . . . 2 . Weapon 58 | 2 1 7 1 7 2 1 . 2 1 1 6 . 1 . . . . 4 1 . 2 . 5 11 3 Energy Gun 7 | . . . . . . . . . . . 1 . . . . . . . . . 1 . . 3 2 Energy Cannon 7 | . . . . 1 . . . 1 . . . . . . . . . . . . 1 . 2 2 . Ballistic Gun 21 | 2 . 1 1 3 2 . . 1 . 1 2 . 1 . . . . 3 1 . . . 2 1 . Ballistic Cannon 7 | . . 3 . 1 . . . . . . . . . . . . . . . . . . 1 2 . Launcher 5 | . 1 1 . . . 1 . . . . . . . . . . . . . . . . . 1 1 Special Weapon 7 | . . 1 . . . . . . 1 . 3 . . . . . . . . . . . . 2 . Impact Weapon . | . . . . . . . . . . . . . . . . . . . . . . . . . . Slashing Weapon 3 | . . 1 . 1 . . . . . . . . . . . . . 1 . . . . . . . Piercing Weapon . | . . . . . . . . . . . . . . . . . . . . . . . . . . Special Melee Weapon 1 | . . . . 1 . . . . . . . . . . . . . . . . . . . . . Unidentified Prototypes 52 | . . . . 1 . 1 . . 2 . 8 . 1 . . . 4 6 . 1 7 . 2 18 1 Corrupted Parts 6 | . . . . . . . . . . . . 1 . . . . . . . . . . . 5 . System Corruption 31 | . . . . . . . . . . . . 9 . . . . . . . . . . . 22 . Parts Lost 17 | . . 3 . 1 . . . . . . . . . . 1 . . 1 . . . . 1 10 . Power 1 | . . . . . . . . . . . . . . . 1 . . . . . . . . . . Propulsion 4 | . . 1 . 1 . . . . . . . . . . . . . . . . . . . 2 . Utility 7 | . . 1 . . . . . . . . . . . . . . . 1 . . . . 1 4 . Weapon 5 | . . 1 . . . . . . . . . . . . . . . . . . . . . 4 . Highest Loss Streak 3 | . . 3 . 1 . . . . . . . . . . 1 . . 1 . . . . 1 2 . To Critical Strikes 2 | . . 1 . . . . . . . . . . . . 1 . . . . . . . . . . Average Backups 13 | 2 8 7 20 13 13 14 15 15 15 15 13 12 13 14 14 14 14 17 17 17 16 18 19 17 8 Power 1 | . 1 . 5 1 . 1 1 1 1 1 1 1 1 1 . . . 1 1 1 1 1 1 . . Propulsion 2 | 1 2 1 2 1 1 1 2 2 1 1 2 2 3 2 3 3 2 4 6 7 6 6 5 1 . Utility 4 | . 2 1 6 5 4 4 4 4 6 7 4 5 4 5 6 7 6 4 5 4 2 4 4 3 1 Weapon 3 | . 2 3 5 3 3 6 6 6 6 4 3 2 2 3 2 2 2 5 3 3 4 3 3 5 6 Tool/Special . | . . . . . . . . . . . . . . . . . . . . . . . . . . Unused Backups 47 | . . 2 1 21 2 . . 1 5 2 4 . . . . . 1 1 . 1 . 1 1 3 1 Power 8 | . . . . 6 . . . . . 1 1 . . . . . . . . . . . . . . Propulsion 4 | . . . . 1 . . . . 1 . . . . . . . . . . 1 . 1 . . . Utility 25 | . . 1 . 9 1 . . . 4 1 2 . . . . . 1 1 . . . . 1 3 1 Weapon 6 | . . 1 1 3 . . . . . . 1 . . . . . . . . . . . . . . Tool/Special 4 | . . . . 2 1 . . 1 . . . . . . . . . . . . . . . . . Average Slot Usage (%) 78 | . 100 83 85 85 52 57 60 60 63 64 79 80 81 72 72 73 73 72 74 76 70 75 77 70 84 Engine 4 | . 14 14 14 4 . . . . . . . . . . . . . . . . . . . . . Core 2 | . . . . 9 6 6 6 6 5 5 . . . . . . . . . . . . . . . Reactor 2 | . . . . . . . . . . . 4 5 5 5 4 5 5 5 4 4 4 7 8 7 9 Treads 7 | . . 21 . . . . . . . . 9 10 11 5 5 5 5 5 4 4 1 4 4 7 . Wheel 9 | . 28 6 28 25 12 13 13 13 11 11 1 . . 4 5 5 4 4 4 4 4 4 4 . . Device 6 | . 14 . . 3 6 10 13 13 9 11 5 5 7 5 10 10 6 13 10 11 14 15 13 16 18 Storage 5 | . 14 2 14 10 6 6 6 6 5 5 5 5 5 5 5 5 5 5 4 4 4 4 4 4 4 Processor 6 | . . . . . . . . . . 4 15 17 17 15 15 15 15 15 18 16 14 13 13 11 11 Hackware 1 | . . . . . . . . . 10 5 . . 4 5 5 5 5 . 2 4 . . 2 . . Protection 8 | . . 10 . . 5 6 6 6 5 5 21 21 13 14 9 10 13 10 9 9 11 13 13 3 4 Energy Cannon 1 | . . . . 6 . . . 1 . . . . . . . . . . . . . . . . . Ballistic Gun 7 | . 15 5 14 6 12 13 13 10 9 10 9 9 8 8 8 6 5 6 8 11 5 8 9 4 . Ballistic Cannon 4 | . . 12 14 6 . . . . . . . . . . . . . . . . . . . . . Special Weapon 2 | . . 6 . . . . . . . . 1 . . . . . . . 2 2 3 2 . 1 3 Slashing Weapon 2 | . . 2 . 4 . . . . . . . . 1 . . 3 4 3 1 . 2 1 1 1 . Peak Build Rating 336 | 7 8 17 16 48 89 94 94 94 105 106 135 134 131 134 133 133 145 145 157 161 169 177 186 328 336 Average Rating 90 | 5 7 10 16 21 87 91 94 93 101 103 130 130 128 132 130 132 133 140 153 156 146 173 182 206 331 On Entrance 110 | . 7 8 17 16 48 89 94 94 94 104 103 133 131 130 131 132 133 144 145 153 152 166 176 173 311 Avg Prop Armor Cover (%) 5 | . . 5 . 8 . . . . . . 10 . 4 5 5 5 5 6 5 5 4 4 4 4 . Naked Turns . | . . . . . . . . . . . . . . . . . . . . . . . . . . Heaviest Build 194 | 14 21 49 49 64 113 154 154 159 168 155 175 149 158 142 136 136 134 135 139 141 154 176 175 194 137 Greatest Support 255 | 32 32 40 32 38 40 40 40 40 40 40 160 160 160 80 35 35 240 240 35 80 35 35 80 255 130 Greatest Overweight (x) 49 | 4 . 1 1 3 2 3 3 3 4 3 49 1 1 4 3 3 3 3 3 4 4 5 4 5 1 Average Overweight (x) 1 | . . . 1 . 2 2 3 3 3 3 1 . . 2 3 3 2 2 3 2 3 4 3 . . Largest Inventory Capacity 25 | 8 10 25 25 25 25 25 25 25 25 25 25 25 25 25 25 25 25 25 25 25 25 25 25 25 20 Average Capacity 19 | 7 8 8 25 19 25 25 25 25 25 25 25 25 25 25 25 25 25 25 25 25 25 25 25 21 10 Most Carried 25 | 5 10 25 25 25 25 25 25 25 25 25 25 25 25 25 25 24 25 25 25 25 25 25 25 25 20 Average Carried 18 | 2 8 7 24 16 22 24 25 24 24 24 24 24 24 24 24 24 24 24 24 24 22 23 24 19 9 Final Capacity 25 | 8 10 25 25 25 25 25 25 25 25 25 25 25 25 25 25 25 25 25 25 25 25 25 25 20 10 Final Carried 25 | 5 10 25 25 25 25 25 25 25 25 25 25 25 25 25 24 24 25 25 25 24 25 24 25 20 6 Scrap Suit Usage (%) 9 | . . . . 1 98 92 100 97 100 100 4 . . . . . . . . . . . . . . Parts Cannibalized 1 | . . . . . 1 . . . . . . . . . . . . . . . . . . . . Class Distribution -------------------- 45% | Mutant 26% | Scavenger-Mutant 8% | Scavenger-Scrapper 4% | Alien-Sigix 3% | Scavenger-Tank Dominant Class ---------------- Mutant | -10/Materials Mutant | -10/Subcaves Mutant | -8/Recycling Mutant | -8/Scraptown Scavenger-Scrapper | -6/Factory Scavenger-Scrapper | -6/Lower Caves Scavenger-Scrapper | -6/Data Miner Scavenger-Scrapper | -5/Proximity Caves Scavenger-Scrapper | -5/Factory Scavenger-Scrapper | -5/Extension Scavenger-Mutant | -5/Cetus Scavenger-Mutant | -5/Archives Scavenger-Mutant | -5/Hub_04(d) Scavenger-Mutant | -4/Factory Scavenger-Mutant | -4/Upper Caves Scavenger-Mutant | -4/Upper Caves Scavenger-Mutant | -4/Zhirov Scavenger-Mutant | -3/Proximity Caves Scavenger-Skirmisher | -3/Research Scavenger-Tank | -3/Armory Scavenger-Mutant | -3/Lab Scavenger-Tank | -2/Research Hacker-Mutant | -2/Quarantine Scavenger-Assassin | -2/Section 7 Alien-Sigix | -1/Access Resources | -11 -10 -10 -8 -8 -6 -6 -6 -5 -5 -5 -5 -5 -5 -4 -4 -4 -4 -3 -3 -3 -3 -2 -2 -2 -1 ----------- Run | Yrd Mat Sub Rec Scr Fac Low Dat Pro Fac Ext Cet Arc Hub Fac Upp Upp Zhi Pro Res Arm Lab Res Qua Sec Acc Matter Collected 16869 | 292 70 789 76 8271 161 31 . 192 97 287 728 129 300 289 247 78 90 551 . 101 . 18 903 2797 372 Remotely 1911 | . . . . . . . . . . . . . . . . . . . . . . . 379 1532 . Salvage Created 21416 | 95 99 348 . . 281 . . 60 . 452 519 554 349 475 238 510 . 790 . 149 . 18 1070 4070 11339 Parts 938 | 6 14 27 . . 12 . . 2 . 22 26 37 22 19 12 5 . 30 . 8 . . 69 201 426 Haulers Intercepted 2 | . . . . . 1 . . . . . . . . . . . . 1 . . . . . . . Recyclers Shooed 5 | 1 . . . . . . . . . 2 . . . . . . . . . . . 1 1 . . Parts Field Recycled . | . . . . . . . . . . . . . . . . . . . . . . . . . . Retrieved Matter . | . . . . . . . . . . . . . . . . . . . . . . . . . . Parts Self-Destructed 70 | . . 15 . . . . . 23 . . . . . . 12 . . 20 . . . . . . . Prevented . | . . . . . . . . . . . . . . . . . . . . . . . . . . Parts Restored . | . . . . . . . . . . . . . . . . . . . . . . . . . . Kills | -11 -10 -10 -8 -8 -6 -6 -6 -5 -5 -5 -5 -5 -5 -4 -4 -4 -4 -3 -3 -3 -3 -2 -2 -2 -1 ------- Run | Yrd Mat Sub Rec Scr Fac Low Dat Pro Fac Ext Cet Arc Hub Fac Upp Upp Zhi Pro Res Arm Lab Res Qua Sec Acc Combat Hostiles Destroyed 257 | . 8 12 . . 3 . . 2 . 5 4 3 4 10 3 . . 5 . 4 . . 11 50 133 Melee 7 | . . . . . . . . . . 1 . . . 1 . . . . . . . . 2 3 . Guns 178 | . . 2 . . 3 . . 2 . 4 4 3 4 9 3 . . 5 . 4 . . 9 33 93 Cannons 16 | . . 7 . . . . . . . . . . . . . . . . . . . . . 8 1 AOE 40 | . 8 3 . . . . . . . . . . . . . . . . . . . . . 5 24 Classes Destroyed 26 | 2 4 3 . . 2 . . . . . 1 . 3 . 1 . . 3 . . . . 1 3 3 Worker 10 | . 1 . . . . . . . . . . . . . . . . . . . . 1 4 3 1 Builder 6 | . . . . . . . . . . . . . 1 . . . . . . . . . . 2 3 Tunneler 2 | 1 1 . . . . . . . . . . . . . . . . . . . . . . . . Hauler 2 | . . . . . 1 . . . . . . . . . . . . 1 . . . . . . . Recycler 8 | 1 . . . . . . . . . 1 . . . . . . . . . . . . 1 4 1 Carrier 3 | . . . . . . . . . . . . . . . . . . . . . . . . . 3 Mechanic 12 | . . . . . . . . . . . . . . . . . . . . . . . 1 . 11 Operator 11 | . 1 . . . . . . . . 1 . 8 1 . . . . . . . . . . . . Turret 2 | . . 2 . . . . . . . . . . . . . . . . . . . . . . . Watcher 5 | . . . . . . . . . . . . . 1 . . . . . . . . . . 3 1 Swarmer 26 | . 6 4 . . 1 . . 2 . . . . . 5 . . . . . 3 . . . 5 . Saboteur 6 | . . . . . . . . . . . . . . . . . . . . . . . . 1 5 Grunt 94 | . 2 . . . 1 . . . . 2 4 . 1 3 . . . . . 1 . . 1 15 64 Brawler 13 | . . . . . . . . . . . . . . . . . . . . . . . . . 13 Duelist 9 | . . . . . . . . . . . . . . 1 . . . . . . . . . . 8 Protector 13 | . . . . . . . . . . . . . . . . . . 2 . . . . . . 11 Sentry 12 | . . . . . 1 . . . . 3 . 3 2 1 1 . . . . . . . . 1 . Specialist 1 | . . . . . . . . . . . . . . . . . . 1 . . . . . . . Hunter 12 | . . . . . . . . . . . . . . . 2 . . 1 . . . . 2 2 5 Programmer 36 | . . . . . . . . . . . . . 1 . . . . . . . . . 8 15 12 Heavy 1 | . . . . . . . . . . . . . . . . . . . . . . . . 1 . S7 Guard 1 | . . . . . . . . . . . . . . . . . . . . . . . . 1 . Enhanced Grunt 1 | . . . . . . . . . . . 1 . . . . . . . . . . . . . . Investigator 2 | . . . . . . . . . . . . . . . . . . . . . . . . . 2 Striker 13 | . . . . . . . . . . . . . . . . . . . . . . . . 5 8 Executioner 12 | . . . . . . . . . . . . . . . . . . 1 . . . . . 4 7 Artisan 2 | . . 2 . . . . . . . . . . . . . . . . . . . . . . . Subdweller 8 | . . 8 . . . . . . . . . . . . . . . . . . . . . . . Decomposer 1 | . . . . . . . . . . . . . . . 1 . . . . . . . . . . Thug 1 | . . 1 . . . . . . . . . . . . . . . . . . . . . . . Butcher 1 | . . . . . . . . . . . 1 . . . . . . . . . . . . . . Best Kill Streak 75 | 2 7 5 . . 1 . . 1 . 1 2 5 3 8 2 . . 3 . 3 . 1 4 9 75 Combat Bots Only 42 | . 5 3 . . 1 . . 1 . 1 2 3 2 8 2 . . 3 . 3 . . 2 6 42 Max Kills in Single Turn 12 | 1 2 3 . . 1 . . 1 . 1 2 1 1 2 1 . . 1 . 1 . 1 2 4 12 Gunslinging 1 | . . . . . . . . . . . . . . 1 . . . . . . . . 1 1 1 Exploded 9 | . 2 2 . . . . . . . . . . . . . . . . . . . . . 4 9 Melee 1 | . . . . . . . . . . 1 . . . 1 . . . . . . . . 1 1 . Uniques/NPCs Destroyed 1 | . . . . . . . . . . . 1 . . . . . . . . . . . . . . A7 (-5/Cetus) Combat | -11 -10 -10 -8 -8 -6 -6 -6 -5 -5 -5 -5 -5 -5 -4 -4 -4 -4 -3 -3 -3 -3 -2 -2 -2 -1 -------- Run | Yrd Mat Sub Rec Scr Fac Low Dat Pro Fac Ext Cet Arc Hub Fac Upp Upp Zhi Pro Res Arm Lab Res Qua Sec Acc Hostile Shots Fired 1487 | . 6 59 . 26 59 . . 15 . 25 20 9 60 42 43 . . 44 . 2 . 5 108 396 568 Missed 523 | . 2 16 . 6 21 . . 3 . 10 6 3 13 10 7 . . 19 . 1 . . 26 111 269 Hits 964 | . 4 43 . 20 38 . . 12 . 15 14 6 47 32 36 . . 25 . 1 . 5 82 285 299 Melee 7 | . . . . . . . . . . . . . . . . . . . . . . . . 4 3 Projectile 957 | . 4 43 . 20 38 . . 12 . 15 14 6 47 32 36 . . 25 . 1 . 5 82 281 296 AOE 8 | . . 3 . . . . . . . . . . 1 . . . . . . 1 . . . . 3 Critical Strikes 59 | . . 2 . 3 1 . . 1 . 1 2 . 3 1 3 . . . . . . . 5 18 19 Actively Blocked 21 | . . . . . . . . . . . . . . . . . . . . . . . . 2 19 Part Disruptions 4 | . . . . . . . . . . . . . 1 . . . . . . . . . 2 1 . Damage Taken 19155 | . 109 1106 . 317 572 . . 235 . 344 214 153 713 740 686 . . 596 . 26 . 235 1396 7783 3930 Core 3322 | . 9 22 . 129 25 . . 16 . 93 . . 25 . 42 . . 34 . . . . 49 1343 1535 Absorbed by Shields 991 | . . . . . . . . . . . 109 . . . . . . . . . . 18 . . 864 Reduced by Siege Mode 459 | . . . . . . . . . . . . . . . 34 . . . . . . . . 425 . Redirected to Shielding 156 | . . . . . . . . . . . . . . . . . . 156 . . . . . . . Ignored by Resistances 6326 | . . . . . 3 . . . . 37 . . 524 . . . . . . . . . 633 774 4355 Regen/Repaired (Parts) 555 | . . . . . 9 . . . . . 36 . 27 130 2 . 111 30 . . . . 147 63 . Core Remaining (%) 64 | 100 . . . 36 . . . 95 . . . . 88 . . . . 93 . . 90 . . 14 1 Volleys Fired 705 | 3 11 155 . 16 21 . . 14 1 24 54 8 14 24 19 3 . 30 . 5 . . 33 120 150 Largest 4 | 2 1 2 . 1 2 . . 2 1 2 2 2 2 2 2 1 . 2 . 3 . . 3 4 4 Hottest 400 | 40 30 100 . 80 65 . . 90 90 64 70 70 70 70 70 35 . 70 . 105 . . 105 400 400 Shots Fired 1375 | 6 11 177 . 16 42 . . 21 1 46 105 16 28 47 34 3 . 40 . 15 . . 78 257 432 Gun 1124 | 6 . 38 . . 42 . . 14 . 46 102 16 28 47 34 3 . 39 . 15 . . 78 195 421 Cannon 157 | . . 72 . 16 . . . 7 1 . . . . . . . . . . . . . . 58 3 Launcher 18 | . 11 3 . . . . . . . . . . . . . . . . . . . . . 3 1 Special 76 | . . 64 . . . . . . . . 3 . . . . . . 1 . . . . . 1 7 Kinetic 812 | 6 . 113 . . 42 . . 14 . 46 102 16 28 47 34 3 . 39 . 15 . . 78 229 . Thermal 94 | . . 64 . 16 . . . 7 1 . . . . . . . . . . . . . . 2 4 Explosive 14 | . 11 . . . . . . . . . . . . . . . . . . . . . . 3 . Electromagnetic 8 | . . . . . . . . . . . . . . . . . . . . . . . . 1 7 Slashing 443 | . . . . . . . . . . . . . . . . . . . . . . . . 22 421 Robot Hit Streak 41 | 2 1 10 . . 7 . . 4 . 5 13 14 10 9 10 . . 5 . 5 . . 10 41 29 Robot Miss Streak 8 | 1 2 2 . . 7 . . 2 . 3 8 1 4 4 2 . . 5 . 1 . . 3 4 5 Penetration Max 2 | . . . . . 1 . . 1 . 1 1 . 1 1 1 . . 1 . . . . 1 2 1 Secondary Targets 61 | . . . . . 1 . . . . 1 . . . 3 1 . . . . . . . 1 10 44 Max Gunslinging Chain 2 | . . . . . 1 . . . . 1 . . . 1 1 . . . . . . . 1 2 2 Shots Hit Robots 921 | 3 2 63 . 3 23 . . 9 . 26 70 23 21 32 24 10 . 25 . 10 . 3 52 216 306 Core Hits 556 | 3 12 30 . . 9 . . 3 . 16 29 12 10 17 11 5 . 14 . 5 . . 24 120 236 Critical Kills 49 | . . . . . . . . . . 2 3 3 2 4 . . . 4 . 2 . . 8 20 1 Critical Parts Destroyed 46 | . . . . . 1 . . . . 1 1 . 1 4 3 . . 2 . 1 . . 11 21 . Critical Strikes 138 | . . 3 . . 1 . . . . 5 7 3 3 8 4 . . 6 . 3 . . 22 64 9 Destroy 104 | . . 1 . . 1 . . . . 4 7 3 3 8 4 . . 6 . 3 . . 19 45 . Blast 12 | . . 2 . . . . . . . . . . . . . . . . . . . . . 10 . Smash 2 | . . . . . . . . . . . . . . . . . . . . . . . . 1 1 Sever 20 | . . . . . . . . . . 1 . . . . . . . . . . . . 3 8 8 Melee Attacks 142 | . . . . 26 . . . . . 4 . 13 3 4 4 11 . 11 4 . 5 4 17 34 2 Impact . | . . . . . . . . . . . . . . . . . . . . . . . . . . Slashing 140 | . . . . 24 . . . . . 4 . 13 3 4 4 11 . 11 4 . 5 4 17 34 2 Piercing . | . . . . . . . . . . . . . . . . . . . . . . . . . . Sneak Attacks 27 | . . . . 2 . . . . . . . 11 1 . 1 . . . . . . 2 6 4 . Combat Hostiles . | . . . . . . . . . . . . . . . . . . . . . . . . . . Follow-up Attacks . | . . . . . . . . . . . . . . . . . . . . . . . . . . Damage Inflicted 63265 | 41 596 1261 . 12 713 . . 356 . 1020 2028 1484 750 1071 598 849 . 1259 . 279 . 241 2008 8917 39782 Guns 35030 | 41 . 198 . . 713 . . 356 . 925 2028 298 592 1030 527 . . 537 . 279 . . 1189 4703 21614 Cannons 2659 | . . 760 . . . . . . . . . . . . . . . . . . . . . 1772 127 Explosions 20032 | . 596 303 . . . . . . . . . . . . . . . . . . . . . 1245 17888 Melee 5327 | . . . . 12 . . . . . 95 . 1186 158 41 71 849 . 722 . . . 241 819 1133 . Ramming 23 | . . . . . . . . . . . . . . . . . . . . . . . . 23 . Kinetic 15165 | 41 . 1261 . . 713 . . 356 . 925 2028 298 592 1030 527 . . 537 . 279 . . 1189 5389 . Thermal 12410 | . . . . . . . . . . . . . . . . . . . . . . . . 89 12321 Explosive 1739 | . 596 . . . . . . . . . . . . . . . . . . . . . . 794 349 Electromagnetic 5796 | . . . . . . . . . . . . . . . . . . . . . . . . 451 5345 Impact 194 | . . . . . . . . . . . . . . . . . . . . . . . . 41 153 Slashing 27938 | . . . . 12 . . . . . 95 . 1186 158 41 71 849 . 722 . . . 241 819 2130 21614 Piercing . | . . . . . . . . . . . . . . . . . . . . . . . . . . Highest Corruption 41 | . . . . . . . . . . . . 9 4 . . . . . . . . . 7 41 29 Average Corruption 8 | . . . . . . . . . . . . 5 1 . . . . . . . . . 4 8 11 Corruption Purged 9 | . . . . . . . . . . . . 9 . . . . . . . . . . . . . Corruption Blocked . | . . . . . . . . . . . . . . . . . . . . . . . . . . Effects 146 | . . . . . . . . . . . . 1 1 . . . . . . . . . 17 94 33 Message Errors 39 | . . . . . . . . . . . . 1 . . . . . . . . . . 2 27 9 Matter Fused 32 | . . . . . . . . . . . . . 1 . . . . . . . . . 6 21 4 Heat Flow Errors 17 | . . . . . . . . . . . . . . . . . . . . . . . 1 10 6 Energy Discharges 19 | . . . . . . . . . . . . . . . . . . . . . . . 4 12 3 Parts Rejected 3 | . . . . . . . . . . . . . . . . . . . . . . . . 3 . Parts Fused 2 | . . . . . . . . . . . . . . . . . . . . . . . 2 . . Data Loss (minor) 12 | . . . . . . . . . . . . . . . . . . . . . . . 1 8 3 Data Loss (major) 4 | . . . . . . . . . . . . . . . . . . . . . . . . 3 1 Misfires 4 | . . . . . . . . . . . . . . . . . . . . . . . 1 3 . Alerts 2 | . . . . . . . . . . . . . . . . . . . . . . . . 2 . Weapon Failures 12 | . . . . . . . . . . . . . . . . . . . . . . . . 5 7 Overload Shots . | . . . . . . . . . . . . . . . . . . . . . . . . . . Overflow Damage 2714 | . 52 . . . . . . . . . . 371 47 . 67 257 . 261 . . . 141 172 166 1180 Projectiles 59 | . . . . . . . . . . . . . . . . . . . . . . . . 55 4 Explosions 1228 | . 52 . . . . . . . . . . . . . . . . . . . . . . . 1176 Melee 1427 | . . . . . . . . . . . . 371 47 . 67 257 . 261 . . . 141 172 111 . Knockbacks 21 | . . 9 . . . . . . . . . . . . . . . . . . . . . 12 . Impact . | . . . . . . . . . . . . . . . . . . . . . . . . . . Kinetic 17 | . . 9 . . . . . . . . . . . . . . . . . . . . . 8 . Secondary 4 | . . . . . . . . . . . . . . . . . . . . . . . . 4 . Self-Inflicted Damage 672 | . 75 20 . . . . . . . . . . . . . . . . . . . 134 . . 443 Shots 5 | . 1 1 . . . . . . . . . . . . . . . . . . . 1 . . 2 Rammed . | . . . . . . . . . . . . . . . . . . . . . . . . . . Targets Rammed 1 | . . . . . . . . . . . . . . . . . . . . . . . . 1 . Kicked 1 | . . . . . . . . . . . . . . . . . . . . . . . . 1 . Crushed . | . . . . . . . . . . . . . . . . . . . . . . . . . . Highest Temperature 516 | . 1 . . 220 180 . . 48 56 134 60 18 279 18 15 . . 18 . . . . 25 337 516 Average Temperature 84 | . 1 . . 89 62 . . 17 30 48 26 8 106 8 8 . . 18 . . . . 25 97 136 Received Heat Transfer 2917 | . 6 186 . 73 142 . . 12 . 144 59 . 117 123 . . . 72 . . . 21 45 1163 754 Effects 5 | . . . . . . . . . . . . . 1 . . . . . . . . . . . 4 Shutdowns 2 | . . . . . . . . . . . . . . . . . . . . . . . . . 2 Energy Bleed 3 | . . . . . . . . . . . . . 1 . . . . . . . . . . . 2 Siege Activations 6 | . . . . . . . . . . . . . . . 1 . . . . . . . . 5 . Total Turns 153 | . . . . . . . . . . . . . . . 17 . . . . . . . . 136 . Longest Duration 41 | . . . . . . . . . . . . . . . 17 . . . . . . . . 41 . Martial Activations . | . . . . . . . . . . . . . . . . . . . . . . . . . . Shielding Activations . | . . . . . . . . . . . . . . . . . . . . . . . . . . Robots Disrupted . | . . . . . . . . . . . . . . . . . . . . . . . . . . Combat Hostiles . | . . . . . . . . . . . . . . . . . . . . . . . . . . Robots Corrupted 16 | . . . . . . . . . . . . . . . . . . . . . . . . 1 15 Combat Hostiles 16 | . . . . . . . . . . . . . . . . . . . . . . . . 1 15 Parts Fried 45 | . . . . . . . . . . . . . . . . . . . . . . . . . 45 Impact Corruptions 1 | . . . . . . . . . . . . . . . . . . . . . . . . 1 . Robots Melted . | . . . . . . . . . . . . . . . . . . . . . . . . . . Combat Hostiles . | . . . . . . . . . . . . . . . . . . . . . . . . . . Parts Melted 4 | . . 1 . . 1 . . . . . . . . . . . . . . . . . . . 2 Heat Transferred 398 | . . . . . . . . . . . . . . . . . . . . . . . . 55 343 Parts Sabotaged . | . . . . . . . . . . . . . . . . . . . . . . . . . . Parts Stolen . | . . . . . . . . . . . . . . . . . . . . . . . . . . Parts Stripped . | . . . . . . . . . . . . . . . . . . . . . . . . . . Power Chain Reactions 1 | . . . . . . . . . . . . . . . . . . . . . . . . . 1 Alert | -11 -10 -10 -8 -8 -6 -6 -6 -5 -5 -5 -5 -5 -5 -4 -4 -4 -4 -3 -3 -3 -3 -2 -2 -2 -1 ------- Run | Yrd Mat Sub Rec Scr Fac Low Dat Pro Fac Ext Cet Arc Hub Fac Upp Upp Zhi Pro Res Arm Lab Res Qua Sec Acc Maximum Alert Level 5 | . 1 . . . 3 . . . 1 2 1 . . . . . . . . . . . . 5 5 Low Security (%) 65 | 100 46 . 100 . 19 . . . 95 52 58 100 100 100 . . . . 100 100 . 100 100 20 . Level 1 7 | . 53 . . . 12 . . . 4 16 41 . . . . . . . . . . . . 6 . Level 2 7 | . . . . . 23 . . . . 31 . . . . . . . . . . . . . 19 . Level 3 8 | . . . . . 44 . . . . . . . . . . . . . . . . . . 29 23 Level 4 2 | . . . . . . . . . . . . . . . . . . . . . . . . 6 12 Level 5 . | . . . . . . . . . . . . . . . . . . . . . . . . 4 . High Security . | . . . . . . . . . . . . . . . . . . . . . . . . . . Max Security 7 | . . . . . . . . . . . . . . . . . . . . . . . . 11 64 Sterilizations 1 | . . . . . . . . . . . . . . . . . . . . . . . . . 1 Peak Influence 6106 | 10 292 . 66 . 1065 . . . 214 470 341 131 70 188 . . . . 10 125 . 117 108 1930 6106 Initial 1157 | . . . . . . . . . 112 84 247 69 . 22 . . . . . . . . 45 30 1157 Average 400 | 1 171 . 11 . 565 . . . 122 216 189 10 15 33 . . . . . 40 . 36 46 729 2447 Influence Increases 14062 | 10 352 135 182 . 1445 . . 520 326 1249 537 162 187 283 85 20 . 152 24 278 . 184 556 2776 4599 Destroy 0b10 Robot/C 6280 | . 160 120 . . 520 . . 240 80 520 240 80 80 200 60 . . 80 . 140 . . 220 1000 2540 Destroy 0b10 Robot/NC 435 | 10 15 . . . 30 . . . 10 25 5 40 15 . . 20 . 30 . . . 5 30 60 140 Destroy Leader 930 | . 30 . . . 116 . . 20 32 44 20 . 32 30 10 . . 10 . 10 . . 50 154 372 Allied During Kill 1811 | . . . . . 666 . . 260 122 540 177 6 . . . . . 2 . 38 . . . . . Successful Hack 183 | . . . 32 . . . . . 22 10 2 . 21 6 . . . . 8 . . 16 66 . . Select Force Hacks 150 | . . . 150 . . . . . . . . . . . . . . . . . . . . . . Disable Machine 645 | . 60 . . . 45 . . . 30 . 15 30 . . . . . . . 30 . 45 75 180 135 Destroy Structure 2178 | . 87 . . . 53 . . . 30 80 78 6 24 32 . . . . 16 30 . 118 40 307 1277 Partial Spotted 75 | . . . . . 15 . . . . 15 . . 15 . . . . . . . . . . 30 . Lose Combat Pursuer 675 | . . 15 . . . . . . . 15 . . . 15 15 . . 30 . 30 . . 75 345 135 Active Sensor Use 700 | . . . . . . . . . . . . . . . . . . . . . . . . 700 . Influence Decreases 8504 | 10 160 326 183 . 388 442 615 342 332 979 805 336 141 329 85 20 . 152 24 230 48 103 583 900 971 Entered New Map 2460 | . . 93 1 . . 392 615 . 66 88 195 105 . 24 . . . . . . 48 . 36 24 773 Time Decay 4445 | 10 160 203 182 . 168 50 . 342 246 411 470 191 141 145 85 20 . 135 24 150 . 93 437 584 198 Search Patrol Dispatched 100 | . . . . . . . . . . . . . . . . . . . . . . . . 100 . Lost Part 140 | . . 30 . . . . . . . . . . . . . . . . . . . . 10 100 . Lost Ally 867 | . . . . . 220 . . . 20 330 140 40 . 10 . . . 17 . 80 . 10 . . . Purge Threat 492 | . . . . . . . . . . 150 . . . 150 . . . . . . . . 100 92 . Squads Dispatched 104 | . 1 . . . 4 . . . 3 1 . . . 1 . . . . 1 1 . 1 4 39 48 Investigation 9 | . 1 . . . . . . . 1 . . . . . . . . . . . . . . 7 . Extermination 16 | . . . . . 1 . . . 1 . . . . 1 . . . . 1 1 . 1 3 6 1 Reinforcement 9 | . . . . . 3 . . . . 1 . . . . . . . . . . . . 1 2 2 Assault 66 | . . . . . . . . . . . . . . . . . . . . . . . . 24 42 Garrison 4 | . . . . . . . . . 1 . . . . . . . . . . . . . . . 3 Intercept . | . . . . . . . . . . . . . . . . . . . . . . . . . . Searches Triggered 1 | . . . . . . . . . . . . . . . . . . . . . . . . 1 . Data Miner Redirects 3 | . . . . . . . . . . . . . . . . . . . . . . . . 3 . Construction Impeded 2 | . . . . . 2 . . . . . . . . . . . . . . . . . . . . Haulers Reinforced 1 | . . . . . 1 . . . . . . . . . . . . . . . . . . . . Active Scanning Responses 7 | . . . . . . . . . . . . . . . . . . . . . . . . 7 . Cargo Convoy Interrupts . | . . . . . . . . . . . . . . . . . . . . . . . . . . Stealth | -11 -10 -10 -8 -8 -6 -6 -6 -5 -5 -5 -5 -5 -5 -4 -4 -4 -4 -3 -3 -3 -3 -2 -2 -2 -1 --------- Run | Yrd Mat Sub Rec Scr Fac Low Dat Pro Fac Ext Cet Arc Hub Fac Upp Upp Zhi Pro Res Arm Lab Res Qua Sec Acc Distress Signals 9 | . . . . . 1 . . . 1 1 1 . . . . . . . 1 . . . . 3 1 Communications Jammed 111 | . . . . . . . . . . . . . 2 . . . . 42 1 . . . 48 18 . Distress Signals 77 | . . . . . . . . . . . . . 2 . . . . 17 1 . . . 48 9 . Times Spotted 523 | . 10 27 . 36 19 . . 10 1 24 12 7 11 13 6 . . 17 2 8 . 6 22 116 176 Peak Tracking Total 20 | . 5 5 . 4 6 . . 5 1 9 5 1 4 6 3 . . 6 3 5 . 4 4 20 18 Tactical Retreats 26 | . . 1 . 1 . . . . . 1 . . . 1 1 . . 1 . 2 . . 5 9 4 Traps | -11 -10 -10 -8 -8 -6 -6 -6 -5 -5 -5 -5 -5 -5 -4 -4 -4 -4 -3 -3 -3 -3 -2 -2 -2 -1 ------- Run | Yrd Mat Sub Rec Scr Fac Low Dat Pro Fac Ext Cet Arc Hub Fac Upp Upp Zhi Pro Res Arm Lab Res Qua Sec Acc Traps Triggered 14 | . 1 1 . . 1 . . . . 4 . . . . . . . . . 2 . . 1 2 2 Indirectly . | . . . . . . . . . . . . . . . . . . . . . . . . . . Trap Hack Attempts . | . . . . . . . . . . . . . . . . . . . . . . . . . . Triggered . | . . . . . . . . . . . . . . . . . . . . . . . . . . Disarmed . | . . . . . . . . . . . . . . . . . . . . . . . . . . Reprogrammed . | . . . . . . . . . . . . . . . . . . . . . . . . . . Reused 2 | . . . . . . . . . . . . . . . . . . 2 . . . . . . . Traps Extracted . | . . . . . . . . . . . . . . . . . . . . . . . . . . Installed 2 | . . . . . . . . . . . . . . . . . . 2 . . . . . . . Triggered 2 | . . . . . . . . . . . . . . . . . . 2 . . . . . . . Most Traps Carried 2 | . . 1 . 2 2 2 2 2 2 2 2 2 2 2 2 2 2 2 . . . . . . . Machines | -11 -10 -10 -8 -8 -6 -6 -6 -5 -5 -5 -5 -5 -5 -4 -4 -4 -4 -3 -3 -3 -3 -2 -2 -2 -1 ---------- Run | Yrd Mat Sub Rec Scr Fac Low Dat Pro Fac Ext Cet Arc Hub Fac Upp Upp Zhi Pro Res Arm Lab Res Qua Sec Acc Machines Disabled 68 | . 4 5 . 8 3 . . . 2 1 1 2 . . . 1 . . . 2 3 3 5 19 9 Max in Single Turn 4 | . 2 3 . 1 . . . . 1 . . 1 . . . 1 . . . 1 1 2 1 1 4 Garrison Access 4 | . . . . . . . . . 1 . . . 1 . . . . . . . . 1 1 . . Network Hub 1 | . . . . . . . . . . . . . 1 . . . . . . . . . . . . Machines Repaired . | . . . . . . . . . . . . . . . . . . . . . . . . . . Machines Dismantled . | . . . . . . . . . . . . . . . . . . . . . . . . . . Machines Sabotaged . | . . . . . . . . . . . . . . . . . . . . . . . . . . Overloaded Fab Kills . | . . . . . . . . . . . . . . . . . . . . . . . . . . Hacking | -11 -10 -10 -8 -8 -6 -6 -6 -5 -5 -5 -5 -5 -5 -4 -4 -4 -4 -3 -3 -3 -3 -2 -2 -2 -1 --------- Run | Yrd Mat Sub Rec Scr Fac Low Dat Pro Fac Ext Cet Arc Hub Fac Upp Upp Zhi Pro Res Arm Lab Res Qua Sec Acc Machines Accessed 74 | . 1 2 12 9 1 . 2 . 6 4 1 1 5 2 2 1 4 . 3 . . 4 8 4 2 Terminals 36 | . 1 . 6 . 1 . . . 2 3 1 . 4 2 1 1 . . 2 . . 3 6 3 . Fabricators 1 | . . . . . . . . . 1 . . . . . . . . . . . . . . . . Repair Stations 1 | . . . . . . . . . . . . . . . . . . . 1 . . . . . . Recycling Units 9 | . . . 6 . . . . . 2 1 . . . . . . . . . . . . . . . Scanalyzers 3 | . . . . . . . . . . . . . . . . . . . . . . . 1 1 1 Garrison Access 5 | . . . . . . . . . 1 . . . 1 . . . . . . . . 1 1 . 1 Total Hacks 247 | . 1 4 37 50 2 . 19 . 16 11 2 1 12 10 2 1 17 . 7 . . 8 32 8 7 Successful 171 | . 1 4 28 50 1 . 19 . 11 5 1 1 4 7 2 1 17 . 1 . . 3 12 3 . Failed 76 | . . . 9 . 1 . . . 5 6 1 . 8 3 . . . . 6 . . 5 20 5 7 Catastrophic 18 | . . . 1 . 1 . . . . . 1 . 2 . . . . . 2 . . 1 3 3 4 Database Lockouts . | . . . . . . . . . . . . . . . . . . . . . . . . . . Manual 62 | . . . 22 . 2 . . . 6 5 1 . 5 7 . . . . 1 . . 3 9 1 . Terminals 105 | . 1 . 23 . 2 . . . 6 9 2 . 11 10 1 1 . . 2 . . 5 25 7 . Fabricators 4 | . . . . . . . . . 4 . . . . . . . . . . . . . . . . Repair Stations 5 | . . . . . . . . . . . . . . . . . . . 5 . . . . . . Recycling Units 21 | . . . 14 . . . . . 5 2 . . . . . . . . . . . . . . . Scanalyzers 10 | . . . . . . . . . . . . . . . . . . . . . . . 4 1 5 Garrison Access 10 | . . . . . . . . . 1 . . . 1 . . . . . . . . 3 3 . 2 Terminal Hacks 125 | . 1 4 6 50 . . 19 . 5 3 1 1 1 3 2 1 17 . . . . 1 7 3 . Record 56 | . . 3 . 43 . . . . 1 . 1 1 . . 1 1 5 . . . . . . . . Part Schematic 16 | . . . 1 . . . 11 . . . . . . . . . 4 . . . . . . . . Robot Schematic 5 | . . . . . . . 5 . . . . . . . . . . . . . . . . . . Robot Analysis 11 | . . . 1 6 . . . . . . . . . . . . 4 . . . . . . . . Prototype ID Bank 11 | . . . 2 . . . 3 . . 1 . . . . . . 4 . . . . . 1 . . Open Door 1 | . . . . . . . . . . . . . . . 1 . . . . . . . . . . Branch Access Points 1 | . . . . . . . . . 1 . . . . . . . . . . . . . . . . Terminal Index 1 | . . . 1 . . . . . . . . . . . . . . . . . . . . . . Recycling Unit Index 1 | . . . 1 . . . . . . . . . . . . . . . . . . . . . . Alert Level 2 | . . . . . . . . . . 1 . . . 1 . . . . . . . . . . . Unreport Threat 4 | . . . . . . . . . . 1 . . . 1 . . . . . . . . 1 1 . Locate Traps 3 | . . . . . . . . . . . . . . 1 . . . . . . . . 2 . . Recall Investigation 2 | . . . . . . . . . 1 . . . . . . . . . . . . . . 1 . Hauler Manifests 1 | . 1 . . . . . . . . . . . . . . . . . . . . . . . . Registered Components 2 | . . . . . . . . . 1 . . . . . . . . . . . . . 1 . . Zone Layout 6 | . . . . . . . . . 1 . . . 1 . . . . . . . . 1 2 1 . Proto ID Catalog 2 | . . 1 . 1 . . . . . . . . . . . . . . . . . . . . . Fabricator Hacks 3 | . . . . . . . . . 3 . . . . . . . . . . . . . . . . Network Status 1 | . . . . . . . . . 1 . . . . . . . . . . . . . . . . Load Schematic 1 | . . . . . . . . . 1 . . . . . . . . . . . . . . . . Build 1 | . . . . . . . . . 1 . . . . . . . . . . . . . . . . Repair Station Hacks 1 | . . . . . . . . . . . . . . . . . . . 1 . . . . . . Scan Component 1 | . . . . . . . . . . . . . . . . . . . 1 . . . . . . Recycling Unit Hacks 6 | . . . 6 . . . . . . . . . . . . . . . . . . . . . . Report Inventory 5 | . . . 5 . . . . . . . . . . . . . . . . . . . . . . Retrieve Components 1 | . . . 1 . . . . . . . . . . . . . . . . . . . . . . Scanalyzer 1 | . . . . . . . . . . . . . . . . . . . . . . . 1 . . Insert Component 1 | . . . . . . . . . . . . . . . . . . . . . . . 1 . . Garrison Access Hacks 4 | . . . . . . . . . 1 . . . 1 . . . . . . . . 1 1 . . Seal Access 4 | . . . . . . . . . 1 . . . 1 . . . . . . . . 1 1 . . Unauthorized Hacks 29 | . . . 16 . 1 . . . . 2 . . 2 4 . . . . . . . 1 3 . . Terminals 23 | . . . 10 . 1 . . . . 2 . . 2 4 . . . . . . . 1 3 . . Track 1 | . . . . . . . . . . . . . . 1 . . . . . . . . . . . Assimilate 4 | . . . . . . . . . . . . . 2 1 . . . . . . . 1 . . . Botnet 13 | . . . 5 . 1 . . . . 2 . . . 2 . . . . . . . . 3 . . Skim 5 | . . . 5 . . . . . . . . . . . . . . . . . . . . . . Fabricators . | . . . . . . . . . . . . . . . . . . . . . . . . . . Repair Stations . | . . . . . . . . . . . . . . . . . . . . . . . . . . Recycling Units 6 | . . . 6 . . . . . . . . . . . . . . . . . . . . . . Mask 1 | . . . 1 . . . . . . . . . . . . . . . . . . . . . . Tunnel 5 | . . . 5 . . . . . . . . . . . . . . . . . . . . . . Scanalyzers . | . . . . . . . . . . . . . . . . . . . . . . . . . . Garrison Access . | . . . . . . . . . . . . . . . . . . . . . . . . . . Data Cores Recovered 2 | . . . . . . . . . . 1 . . 1 . . . . . . . . . . . . Used 1 | . . . . . . . . . . 1 . . . . . . . . . . . . . . . Hacking Detections 38 | . . . 5 . 1 . . . 5 4 2 . 4 1 . . . . 3 . . 2 6 3 2 Full Trace Events 1 | . . . . . . . . . 1 . . . . . . . . . . . . . . . . Feedback Events . | . . . . . . . . . . . . . . . . . . . . . . . . . . Feedback Blocked . | . . . . . . . . . . . . . . . . . . . . . . . . . . Robot Schematics Acquired 5 | . . . . . . . 5 . . . . . . . . . . . . . . . . . . Robots Built . | . . . . . . . . . . . . . . . . . . . . . . . . . . Authchips . | . . . . . . . . . . . . . . . . . . . . . . . . . . Time . | . . . . . . . . . . . . . . . . . . . . . . . . . . Total Robot Build Rating . | . . . . . . . . . . . . . . . . . . . . . . . . . . Part Schematics Acquired 16 | . . . 1 . . . 11 . . . . . . . . . 4 . . . . . . . . Parts Built 2 | . . . . . . . . . 2 . . . . . . . . . . . . . . . . Authchips . | . . . . . . . . . . . . . . . . . . . . . . . . . . Time 58 | . . . . . . . . . 58 . . . . . . . . . . . . . . . . Total Part Build Rating 14 | . . . . . . . . . 14 . . . . . . . . . . . . . . . . Part Studies Acquired . | . . . . . . . . . . . . . . . . . . . . . . . . . . Parts Repaired . | . . . . . . . . . . . . . . . . . . . . . . . . . . Time . | . . . . . . . . . . . . . . . . . . . . . . . . . . Parts Recycled . | . . . . . . . . . . . . . . . . . . . . . . . . . . Recycled Matter . | . . . . . . . . . . . . . . . . . . . . . . . . . . Retrieved Matter . | . . . . . . . . . . . . . . . . . . . . . . . . . . Retrieved Components 2 | . . . 2 . . . . . . . . . . . . . . . . . . . . . . Parts Scanalyzed . | . . . . . . . . . . . . . . . . . . . . . . . . . . Part Schematics Acquired . | . . . . . . . . . . . . . . . . . . . . . . . . . . Parts Damaged . | . . . . . . . . . . . . . . . . . . . . . . . . . . Bothacking | -11 -10 -10 -8 -8 -6 -6 -6 -5 -5 -5 -5 -5 -5 -4 -4 -4 -4 -3 -3 -3 -3 -2 -2 -2 -1 ------------ Run | Yrd Mat Sub Rec Scr Fac Low Dat Pro Fac Ext Cet Arc Hub Fac Upp Upp Zhi Pro Res Arm Lab Res Qua Sec Acc Used RIF Installer . | . . . . . . . . . . . . . . . . . . . . . . . . . . Robots Hacked 2 | . . . . 2 . . . . . . . . . . . . . . . . . . . . . Non-combat . | . . . . . . . . . . . . . . . . . . . . . . . . . . Combat 2 | . . . . 2 . . . . . . . . . . . . . . . . . . . . . Robot Hacks Applied 2 | . . . . 2 . . . . . . . . . . . . . . . . . . . . . parse_system 2 | . . . . 2 . . . . . . . . . . . . . . . . . . . . . Relay Couplers Released 3 | . . . . . . . . . . . . . . . . . . . . . . . . 3 . Programmers 3 | . . . . . . . . . . . . . . . . . . . . . . . . 3 . Fabnet Peak Effective % . | . . . . . . . . . . . . . . . . . . . . . . . . . . Robots Rewired 21 | . . . . . . . . . . 17 . . . . . . . . . 4 . . . . . Allies Hacked . | . . . . . . . . . . . . . . . . . . . . . . . . . . Hacks Repelled . | . . . . . . . . . . . . . . . . . . . . . . . . . . Allies | -11 -10 -10 -8 -8 -6 -6 -6 -5 -5 -5 -5 -5 -5 -4 -4 -4 -4 -3 -3 -3 -3 -2 -2 -2 -1 -------- Run | Yrd Mat Sub Rec Scr Fac Low Dat Pro Fac Ext Cet Arc Hub Fac Upp Upp Zhi Pro Res Arm Lab Res Qua Sec Acc Total Allies 103 | . . . . 40 . . . . . 21 2 . . 1 . . . . . 4 . 1 . . 34 Largest Group 33 | . . . . 33 32 14 14 13 13 20 12 2 . 1 . . . . . 4 . 1 . . 7 Highest-Rated Group 1557 | . . . . 1557 1500 648 648 593 593 760 567 64 . 10 . . . . . 224 . 26 . . 97 Highest-Rated Ally 159 | . . . . 50 47 47 47 47 47 159 159 39 . 10 . . . . . 56 . 26 . . 15 Total Orders 11 | . . . . 1 . . . . . 1 1 . . . . . . . . 7 . 1 . . . STAY 8 | . . . . . . . . . . 1 1 . . . . . . . . 5 . 1 . . . FOLLOW 2 | . . . . . . . . . . . . . . . . . . . . 2 . . . . . EXPLORE 1 | . . . . 1 . . . . . . . . . . . . . . . . . . . . . Ally Attacks 992 | . . . . 383 243 . . 46 58 183 47 6 . . . . . 5 . 21 . . . . . Total Damage 19541 | . . . . 6755 4948 . . 836 1032 3620 1327 48 . . . . . 276 . 699 . . . . . Kills 174 | . . . . 81 32 . . 11 6 28 11 1 . . . . . 1 . 3 . . . . . Allies Corrupted . | . . . . . . . . . . . . . . . . . . . . . . . . . . Allies Melted 32 | . . . . 30 . . . . . . 1 . . 1 . . . . . . . . . . . Turrets Deployed 1 | . . . . . . . . . . . . . . . . . . 1 . . . . . . . Intel | -11 -10 -10 -8 -8 -6 -6 -6 -5 -5 -5 -5 -5 -5 -4 -4 -4 -4 -3 -3 -3 -3 -2 -2 -2 -1 ------- Run | Yrd Mat Sub Rec Scr Fac Low Dat Pro Fac Ext Cet Arc Hub Fac Upp Upp Zhi Pro Res Arm Lab Res Qua Sec Acc Active Infowar (turns) 15641 | 23 363 9 . 2 . . . . 184 1442 1124 1905 549 787 1082 691 405 1787 406 560 296 300 1239 2473 14 Optics 1488 | . . . . . . . . . . . . . . . . . . . . . . . . 1488 . Sensors 9078 | . . . . . . . . . 184 1442 64 293 407 . 1056 691 405 1787 406 560 296 300 1187 . . A.S.S. 2316 | . . . . . . . . . . . . . . . . . . . . . . . . 2316 . IFF 158 | . . . . . . . . . . . . . . 132 26 . . . . . . . . . . Structural 2 | . . . . . . . . . . . . . . . . . . . . . . . . 2 . Seismic 395 | 23 363 9 . . . . . . . . . . . . . . . . . . . . . . . Machine Analysis 616 | . . . . . . . . . . . . . . . . . . . 345 271 . . . . . Cloaking 3 | . . . . 2 . . . . . . . . . . . . . . . . . . . 1 . Jamming 12615 | . . . . . . . . . . . 1060 1905 367 787 639 691 156 1722 406 560 296 300 1239 2473 14 Robot Analysis Total 11 | . . . 1 6 . . . . . . . . . . . . 4 . . . . . . . . Derelict Logs Recovered 9 | . . 1 . 5 . . . 1 . . . . . . 2 . . . . . . . . . . Drone Launches 2 | . . . . 2 . . . . . . . . . . . . . . . . . . . . . Drone Recoveries . | . . . . . . . . . . . . . . . . . . . . . . . . . . Exploration | -11 -10 -10 -8 -8 -6 -6 -6 -5 -5 -5 -5 -5 -5 -4 -4 -4 -4 -3 -3 -3 -3 -2 -2 -2 -1 ------------- Run | Yrd Mat Sub Rec Scr Fac Low Dat Pro Fac Ext Cet Arc Hub Fac Upp Upp Zhi Pro Res Arm Lab Res Qua Sec Acc Turns Passed 34986 | 79 363 7943 1071 6784 412 109 109 772 530 1442 1198 2022 549 787 1103 691 405 1787 406 560 296 300 1239 2863 1166 Spaces Moved 23656 | 50 257 4916 746 4671 344 90 99 727 456 967 471 328 270 524 976 761 351 1392 445 415 255 265 1031 1974 875 Core 25 | 15 . . . . . . . . . . 8 . . . . . . . . . . . . 2 . Treads 5371 | . . 3264 . . . . . . . . 388 328 270 160 . . 1 276 . 54 . . 5 625 . Legs 1202 | . . . . 78 . . . . . . . . . . . . . . . . . . . 285 839 Wheels 16094 | 35 257 1652 746 4397 344 90 99 727 456 967 75 . . 364 976 761 350 1116 445 361 255 265 1026 330 . Hover 196 | . . . . 196 . . . . . . . . . . . . . . . . . . . . . Flight 691 | . . . . . . . . . . . . . . . . . . . . . . . . 691 . Fastest Speed 24 | 50 100 100 115 56 90 90 100 100 100 100 100 160 160 80 80 80 80 80 80 80 80 90 90 24 76 Average Speed 111 | 104 100 142 115 110 90 97 100 100 101 100 190 160 160 129 80 80 80 111 80 102 85 90 91 92 76 Slowest Speed 2500 | 250 100 160 115 145 90 100 100 100 110 100 2500 240 240 240 80 80 160 240 80 240 90 100 320 320 142 Overloaded Moves 50 | . . . . . . . . . . . . . . . . . . . . . . . . 50 . Propulsion Burnouts . | . . . . . . . . . . . . . . . . . . . . . . . . . . Robots Hopped 1 | . . . . . . . . . . . . . . . . . . . . . . . . 1 . Potential Cave-ins 36 | . . . . . . . . . 2 . . . . . . . . . . . . 4 . 24 6 Cave-ins Triggered . | . . . . . . . . . . . . . . . . . . . . . . . . . . Teleports 5 | . . . . . . . . . . . . . . . . . . . . 1 . . . 3 1 Spacefolds 30 | . . . . . . . . . . . . . . . . . . . . . . . . 18 12 Exploration Rate (%) 53 | 3 50 98 95 94 12 10 72 73 7 83 70 87 25 6 89 79 60 88 9 18 85 12 73 81 23 Regions Visited 25 Branch Regions 18 Pre-discovered Areas 11 | . . 1 6 1 . . . . . . . . . . . . 3 . . . . . . . . Known Exits Taken 18 | . . . 1 . 1 . . 1 1 1 1 1 1 1 1 1 1 1 1 1 1 1 1 . . Unknown Exits Taken 7 | 1 1 1 . 1 . 1 1 . . . . . . . . . . . . . . . . 1 . Scrap Searched 22 | . . 6 . 7 . 1 . 2 . . . . . . 2 2 . 2 . . . . . . . Spaces Dug 252 | . . 12 . 19 . . . 4 5 2 2 . 6 9 29 11 . 4 9 18 . 12 16 70 24 Terrain Destroyed 1615 | . 82 70 . 22 15 . . 14 5 32 47 3 20 18 47 11 . 19 9 18 . 45 19 136 983 Melee 35 | . . . . 15 . . . . . 2 . . . 2 3 1 . 2 4 . . . 3 1 2 Projectile 430 | . . 28 . 7 15 . . 14 . 30 45 3 14 9 20 4 . 17 . . . . 5 19 200 AOE 962 | . 82 42 . . . . . . . . . . . . . . . . . . . 33 . 46 759 Terrain Rammed . | . . . . . . . . . . . . . . . . . . . . . . . . . . Walls Destroyed . | . . . . . . . . . . . . . . . . . . . . . . . . . . Machines Disabled . | . . . . . . . . . . . . . . . . . . . . . . . . . . Actions | -11 -10 -10 -8 -8 -6 -6 -6 -5 -5 -5 -5 -5 -5 -4 -4 -4 -4 -3 -3 -3 -3 -2 -2 -2 -1 --------- Run | Yrd Mat Sub Rec Scr Fac Low Dat Pro Fac Ext Cet Arc Hub Fac Upp Upp Zhi Pro Res Arm Lab Res Qua Sec Acc Total 30819 | 68 352 5553 959 6232 417 110 109 761 522 1414 669 1782 346 572 1254 816 473 1568 485 537 324 315 1222 2756 1203 Wait 5154 | 3 77 394 211 1351 34 11 11 5 39 276 77 1412 35 6 235 39 98 74 29 58 32 37 87 396 127 Move 23582 | 49 256 4915 745 4670 343 89 98 726 455 966 470 327 269 523 975 760 350 1391 444 414 254 264 1030 1949 850 Hop 1 | . . . . . . . . . . . . . . . . . . . . . . . . 1 . Pick Up 272 | 5 5 36 1 69 9 2 . 4 8 8 13 2 3 4 3 . 6 17 2 4 8 2 7 47 7 Fast Attach 110 | 6 . 4 . 10 . 1 . 1 2 . 5 7 . . 2 . 3 4 1 . 5 2 1 56 . Attach 84 | 1 . 2 . 10 3 2 . . 1 . 8 2 4 1 4 . 2 3 2 . 3 . 1 25 10 Detach 43 | . . 1 . 2 . . . 1 1 . 4 2 . . 1 . . 3 1 . 4 . 1 21 1 Swap 268 | 1 2 14 1 27 3 2 . 5 8 8 18 2 14 8 6 3 7 13 2 4 5 3 30 62 20 Drop 244 | . 1 20 1 51 3 3 . 5 7 10 20 7 4 2 5 . 7 20 . 3 8 3 9 45 10 Fire 705 | 3 11 155 . 16 21 . . 14 1 24 54 8 14 24 19 3 . 30 . 5 . . 33 120 150 Melee 142 | . . . . 26 . . . . . 4 . 13 3 4 4 11 . 11 4 . 5 4 17 34 2 Ram . | . . . . . . . . . . . . . . . . . . . . . . . . . . Kick . | . . . . . . . . . . . . . . . . . . . . . . . . . . Crush . | . . . . . . . . . . . . . . . . . . . . . . . . . . Escape Stasis 64 | . . . . . . . . . . 24 . . . . . . . . . 8 . . 6 . 26 Rewire 137 | . . 1 . . 1 . . . . 94 . . . . . . . . . 41 . . . . . Trap 2 | . . . . . . . . . . . . . . . . . . 2 . . . . . . . Miscellaneous 11 | . . 11 . . . . . . . . . . . . . . . . . . . . . . . Route ------- -11/Scrapyard -10/Materials (discovered 2 exits: [*Mat] / *Sub) -10/Subcaves (discovered 4 exits: [*Mat x2] / *Rec / *Scr) -8/Recycling (discovered 2 exits: *Fac / *Scr) -8/Scraptown (discovered 2 exits: *Fac x2) -6/Factory (discovered 4 exits: Fac x3 / *Low) -6/Lower Caves (discovered 2 exits: Low / *Dat) -6/Data Miner -5/Proximity Caves -5/Factory (discovered 4 exits: Upp x2 / *Ext x2) -5/Extension (discovered 2 exits: *Fac / *Cet) -5/Cetus -5/Archives (discovered 3 exits: *Fac / *Hub x2) -5/Hub_04(d) -4/Factory (discovered 2 exits: *Res / *Upp) -4/Upper Caves -4/Upper Caves (discovered 2 exits: *Res / *Zhi) -4/Zhirov -3/Proximity Caves -3/Research (discovered 3 exits: *Res / *Arm / Tes) -3/Armory -3/Lab -2/Research -2/Quarantine (discovered 3 exits: *Acc / *Sec / *Frg) -2/Section 7 -1/Access To Fleet Rendezvous History --------- Turn | Location | Event 3 | -11/Scrapyard | Discovered new exit (range 16) 80 | -11/Scrapyard | Entered Materials 239 | -10/Materials | Discovered new exit (range 15) 301 | -10/Materials | Build established: Mutant 419 | -10/Materials | Discovered new exit (range 7) 443 | -10/Materials | Entered Subcaves 444 | -10/Subcaves | Approached by a straggling Scientist 704 | -10/Subcaves | Ambushed by swarm of Subdwellers 713 | -10/Subcaves | Ambushed by Subdwellers from Twisted Machinery 943 | -10/Subcaves | Visited Clippyterm 948 | -10/Subcaves | Learned Research security intel 1521 | -10/Subcaves | Discovered new exit (range 5) 1582 | -10/Subcaves | Scientist uncovered a shortcut to Scraptown 1628 | -10/Subcaves | Discovered new exit (range 15) 2102 | -10/Subcaves | Shifting Twisted Machinery released Sub. Power Source 2128 | -10/Subcaves | Shifting Twisted Machinery released Riot Gun 3203 | -10/Subcaves | Discovered new exit (range 15) 3501 | -10/Subcaves | Disturbed a concealed Subdweller 3844 | -10/Subcaves | Curiously followed by a Cobbler waking with a query about "LVR3C" 3888 | -10/Subcaves | Shifting Twisted Machinery released Flamer 4283 | -10/Subcaves | Shifting Twisted Machinery released Sub. Beam Cannon 4505 | -10/Subcaves | Shifting Twisted Machinery released Flamer 4519 | -10/Subcaves | Shifting Twisted Machinery released Riot Gun 4536 | -10/Subcaves | Learned location of Zion (-7) 4687 | -10/Subcaves | Visited 4L-MR0's lab 6227 | -10/Subcaves | Ambushed by angry Subdweller bent on revenge 6364 | -10/Subcaves | Ambushed by Subdweller buried in earth 6364 | -10/Subcaves | Ambushed by Subdweller buried in earth 6413 | -10/Subcaves | Lost 3 parts (1n1u1w) 7738 | -10/Subcaves | Found Tower Shield 8386 | -10/Subcaves | Entered Recycling 8706 | -8/Recycling | Discovered new exit (range 16) 8810 | -8/Recycling | Learned location of 1 exit from Lower Caves 8839 | -8/Recycling | Learned location of 3 exits from Factory 8858 | -8/Recycling | Learned Storage terminal intel 8869 | -8/Recycling | Identified exit to Scraptown 8877 | -8/Recycling | Learned Factory terminal intel 8921 | -8/Recycling | Learned Factory emergency access door positions 9427 | -8/Recycling | Scanned before Scraplab entrance 9445 | -8/Recycling | Entered Scraplab 9457 | -8/Recycling | Entered Scraptown 9582 | -8/Scraptown | Visited TADAMA 9594 | -8/Scraptown | Visited Bundlers 9678 | -8/Scraptown | Visited Comm Corps 9905 | -8/Scraptown | Visited Symbiants 9928 | -8/Scraptown | Visited CPS Storage 9950 | -8/Scraptown | Visited UFD Registry 9950 | -8/Scraptown | Registered with UFD as "Pulsemech" 10046 | -8/Scraptown | Scanned Subdweller tech in exchange for log data 10049 | -8/Scraptown | Learned Factory garrison access intel 10050 | -8/Scraptown | Learned Research emergency access door positions 10052 | -8/Scraptown | Learned location of Extension (-5) 10053 | -8/Scraptown | Learned location of 1 exit from Research 10065 | -8/Scraptown | Discovered new exit (range 11) 10190 | -8/Scraptown | Visited Spacefarers 10311 | -8/Scraptown | Visited Science Guys 10349 | -8/Scraptown | Visited LU-1G1's Boring Crew 10368 | -8/Scraptown | Visited Scrapoid Pod Storage 10400 | -8/Scraptown | Delivered Scrap Shield to a Scientist 10499 | -8/Scraptown | Visited Junk Repository 10544 | -8/Scraptown | Visited Derelict Rescue Squad 10578 | -8/Scraptown | Visited Scrap Suit Storage 10599 | -8/Scraptown | Visited Chapter 10 10660 | -8/Scraptown | Visited Analyses Database 10692 | -8/Scraptown | Visited Curators Association 10751 | -8/Scraptown | Visited Abandonware Association 10768 | -8/Scraptown | Learned abandonware demo "HACKBUD.EXE" 10768 | -8/Scraptown | Learned abandonware demo "REPAIR.EXE" 11004 | -8/Scraptown | Found DRS Beacon 11262 | -8/Scraptown | Visited Cyclists 11270 | -8/Scraptown | Entered Cyclist Reading Room 12274 | -8/Scraptown | Found Scrapoid Pod 12411 | -8/Scraptown | Met Optimus 12411 | -8/Scraptown | Accepted into 0bPrime 12647 | -8/Scraptown | Civil war broke out across Scraptown 13643 | -8/Scraptown | Optimus destroyed in the chaos of civil war 13894 | -8/Scraptown | Discovered new exit (range 25) 13990 | -8/Scraptown | Lost 6 allies 14045 | -8/Scraptown | Core integrity fell below 50% 14112 | -8/Scraptown | Found Deploy-a-Sentry 14128 | -8/Scraptown | Lost 4 allies 14130 | -8/Scraptown | Scrapoid Pod released 08S05-D (x5) 14241 | -8/Scraptown | Lost 3 allies 14249 | -8/Scraptown | Found Scrapoid Pod 14352 | -8/Scraptown | Lost 4 allies 14411 | -8/Scraptown | Scrapoid Pod released 08S10-D (x5) 14472 | -8/Scraptown | Found Scrapoid Pod 14480 | -8/Scraptown | Found Scrapoid Pod 14634 | -8/Scraptown | Scrapoid Pod released 08S15-D (x5) 14675 | -8/Scraptown | Found Scrapoid Pod 14688 | -8/Scraptown | Lost 4 allies 14795 | -8/Scraptown | Scrapoid Pod released 08S20-D (x5) 14844 | -8/Scraptown | Found Scrapoid Pod 14978 | -8/Scraptown | Scrapoid Pod released 08S25-D (x5) 14993 | -8/Scraptown | Found Scrapoid Pod 15143 | -8/Scraptown | Scrapoid Pod released 08S30-D (x5) 15171 | -8/Scraptown | Found Scrapoid Pod 15310 | -8/Scraptown | Scrapoid Pod released 08S35-D (x5) 15453 | -8/Scraptown | Found Scrap Suit 15471 | -8/Scraptown | Scrapoid Pod released 08S40-D (x5) 15503 | -8/Scraptown | Lost 6 allies 15551 | -8/Scraptown | Found Voltaic Drivehammer 15594 | -8/Scraptown | Found Prototype Special Weapon 15925 | -8/Scraptown | Found Ballwheel 15932 | -8/Scraptown | Found Damper Plating 15945 | -8/Scraptown | Found DM-GVY's Chainsaw 15957 | -8/Scraptown | Found PL-3XN's Ring of Power 16038 | -8/Scraptown | Build established: Scavenger-Mutant 16040 | -8/Scraptown | Lost 3 allies 16099 | -8/Scraptown | Found Scrap Suit 16117 | -8/Scraptown | Lost 3 allies 16241 | -8/Scraptown | Entered Factory 16241 | -6/Factory | Accompanied by 32 allies 16241 | -6/Factory | Evolved 8 slots: Propulsion x2, Utility x6 16242 | -6/Factory | Identified exit to Lower Caves 16243 | -6/Factory | Identified exit to Factory 16245 | -6/Factory | Loaded intel: 26 terminal locations 16246 | -6/Factory | Loaded intel: 4 garrison access locations 16313 | -6/Factory | Spotted B-75 Beast 16321 | -6/Factory | Allies destroyed B-75 Beast 16410 | -6/Factory | Lost 6 allies 16461 | -6/Factory | P-60 Hacker assimilated allied 08S34-D 16463 | -6/Factory | P-60 Hacker assimilated allied 08S21-D 16548 | -6/Factory | Build established: Scavenger-Scrapper 16653 | -6/Factory | Entered Lower Caves 16653 | -6/Lower Caves | Accompanied by 14 allies 16654 | -6/Lower Caves | Identified exit to Lower Caves 16655 | -6/Lower Caves | UFD Scientist delivered a prototype 16658 | -6/Lower Caves | Found Prototype Protection 16660 | -6/Lower Caves | Lost 7 allies 16706 | -6/Lower Caves | A Derelict revealed a hidden shortcut to meet someone special 16762 | -6/Lower Caves | Entered Data Miner 16762 | -6/Data Miner | Accompanied by 14 allies 16762 | -6/Data Miner | Discovered new exit (range 6) 16781 | -6/Data Miner | Met Data Miner 16821 | -6/Data Miner | Received God Mode back door access code from Data Miner 16871 | -6/Data Miner | Entered Proximity Caves 16871 | -5/Proximity Caves | Accompanied by 14 allies 16881 | -5/Proximity Caves | Found Scrap Suit 17305 | -5/Proximity Caves | Discovered exit to Factory (range 11) 17376 | -5/Proximity Caves | Attracted the attention of an 0b10 checkpoint 17643 | -5/Proximity Caves | Entered Factory 17643 | -5/Factory | Accompanied by 13 allies 17643 | -5/Factory | Evolved 2 slots: Utility x2 17644 | -5/Factory | Identified exit to Extension 17645 | -5/Factory | Garrison activated, responded to threat 17658 | -5/Factory | Identified Enh. Scrap Shield 17748 | -5/Factory | Identified exit to Upper Caves 17943 | -5/Factory | Fabricated Lrn. Sensor Array? 18097 | -5/Factory | Identified LU-1G1's Laser Shovel 18173 | -5/Factory | Entered Extension 18173 | -5/Extension | Accompanied by 12 allies 18416 | -5/Extension | Lost 3 allies 18573 | -5/Extension | Rescued a captive Derelict 18574 | -5/Extension | Rescued a captive Derelict 18966 | -5/Extension | Spotted B-75 Beast 18968 | -5/Extension | Allies destroyed B-75 Beast 18975 | -5/Extension | Build established: Commander-Scrapper 18987 | -5/Extension | Spotted B-75 Beast 18988 | -5/Extension | Allies destroyed B-75 Beast 19052 | -5/Extension | Rescued a captive Derelict 19069 | -5/Extension | Lost 12 allies 19190 | -5/Extension | Discovered new exit (range 16) 19193 | -5/Extension | Discovered new exit (range 14) 19212 | -5/Extension | Identified exit to Cetus 19325 | -5/Extension | Build established: Scavenger-Scrapper 19377 | -5/Extension | Lost 3 allies 19496 | -5/Extension | Rescued A7 19615 | -5/Extension | Entered Cetus 19615 | -5/Cetus | Accompanied by 12 allies (A7) 19620 | -5/Cetus | Acquired a Cetus Manufacturing Module code from A7 19635 | -5/Cetus | Spotted Cetus Guard 19635 | -5/Cetus | Spotted Cetus Guard 19638 | -5/Cetus | Spotted Cetus Guard 19638 | -5/Cetus | Spotted Cetus Guard 19638 | -5/Cetus | Allies destroyed Cetus Guard 19642 | -5/Cetus | Attached CPS modules to Cetus Guard 19644 | -5/Cetus | Attached CPS modules to Cetus Guard 19645 | -5/Cetus | Allies destroyed Cetus Guard 19647 | -5/Cetus | Allies destroyed Cetus Guard 19657 | -5/Cetus | Allies destroyed Cetus Guard 19676 | -5/Cetus | Lost 3 allies 19725 | -5/Cetus | Attached CPS modules to A7 19856 | -5/Cetus | Escorted A7 to Cetus Mainframe 19948 | -5/Cetus | Build established: Scavenger-Mutant 19992 | -5/Cetus | Discovered new exit (range 16) 20359 | -5/Cetus | Started Cetus Manufacturing Module 20365 | -5/Cetus | Security sweep announced 20384 | -5/Cetus | Manufactured an Enhanced Grunt 20409 | -5/Cetus | Manufactured an Enhanced Grunt 20409 | -5/Cetus | Cetus Manufacturing Module disabled 20424 | -5/Cetus | Identified exit to Archives 20656 | -5/Cetus | Lost 5 allies 20717 | -5/Cetus | Murdered A7 20718 | -5/Cetus | Extracted ID and sensor layout for unrecognized location from A7's data core 20727 | -5/Cetus | Found Prototype Protection 20727 | -5/Cetus | Identified Med. Regenerative Plating 20813 | -5/Cetus | Entered Archives 20813 | -5/Archives | Accompanied by 2 allies 20906 | -5/Archives | Discovered new exit (range 15) 20932 | -5/Archives | Discovered new exit (range 14) 20949 | -5/Archives | Unable to access archive contents 21017 | -5/Archives | Discovered new exit (range 13) 21053 | -5/Archives | Identified exit to Hub_04(d) 22835 | -5/Archives | Entered Hub_04(d) 23259 | -5/Hub_04(d) | Network Hub disabled 23324 | -5/Hub_04(d) | Discovered new exit (range 11) 23343 | -5/Hub_04(d) | Identified exit to Factory 23370 | -5/Hub_04(d) | Spotted Lightning 23370 | -5/Hub_04(d) | Spotted Lightning 23370 | -5/Hub_04(d) | Spotted Lightning 23384 | -5/Hub_04(d) | Entered Factory 23384 | -4/Factory | Evolved 2 slots: Propulsion x2 23688 | -4/Factory | Discovered new exit (range 13) 23803 | -4/Factory | Destroyed 8 combat bots 23971 | -4/Factory | Discovered new exit (range 2) 23972 | -4/Factory | Identified exit to Upper Caves 24125 | -4/Factory | Spotted B-86 Titan 24171 | -4/Factory | Entered Upper Caves 24454 | -4/Upper Caves | Learned Research stockpile data 24822 | -4/Upper Caves | Attracted the attention of an 0b10 checkpoint 24922 | -4/Upper Caves | Learned Research stockpile data 25271 | -4/Upper Caves | Discovered new exit (range 4) 25273 | -4/Upper Caves | Identified exit to Upper Caves 25274 | -4/Upper Caves | Entered another Upper Caves area 25331 | -4/Upper Caves | Discovered new exit (range 9) 25338 | -4/Upper Caves | Identified exit to Research 25598 | -4/Upper Caves | Discovered new exit (range 5) 25601 | -4/Upper Caves | Identified exit to Zhirov 25965 | -4/Upper Caves | Entered Zhirov 25965 | -4/Zhirov | Discovered new exit (range 3) 25980 | -4/Zhirov | Met Zhirov 25997 | -4/Zhirov | Learned location of Quarantine (-2) 25997 | -4/Zhirov | Learned location of Testing (-3) 25997 | -4/Zhirov | Learned location of Command (-1) 26004 | -4/Zhirov | Zhirov requested help retrieving the SGEMP Prototype 26016 | -4/Zhirov | Found Alien Artifact 26016 | -4/Zhirov | Identified Integrated Reactor 26016 | -4/Zhirov | Installed Integrated Reactor, increased core energy generation (+10) 26028 | -4/Zhirov | Found Alien Artifact 26364 | -4/Zhirov | Identified exit to Proximity Caves 26370 | -4/Zhirov | Entered Proximity Caves 26397 | -3/Proximity Caves | Unaware initiated a cargo recovery operation 26461 | -3/Proximity Caves | Found Prototype Device 26461 | -3/Proximity Caves | Identified Adv. EM Shield 26642 | -3/Proximity Caves | Spotted Executioner 26660 | -3/Proximity Caves | DAS Turret deployed 26690 | -3/Proximity Caves | Attached CPS modules to Executioner 26703 | -3/Proximity Caves | Destroyed Executioner 26710 | -3/Proximity Caves | Found Prototype Processor 26765 | -3/Proximity Caves | Identified Exp. Core Analyzer 26775 | -3/Proximity Caves | Found Adv. EM Shield 27194 | -3/Proximity Caves | Discovered exit to Research (range 7) 28157 | -3/Proximity Caves | Entered Research 28157 | -3/Research | Evolved 2 slots: Utility x1, Weapon x1 28158 | -3/Research | Identified exit to Armory 28159 | -3/Research | Identified exit to Testing 28258 | -3/Research | Watched by a mysterious "MATRIX" hacker 28408 | -3/Research | Discovered new exit (range 4) 28413 | -3/Research | Identified exit to Research 28563 | -3/Research | Entered Armory 28630 | -3/Armory | Build established: Scavenger-Skirmisher 29121 | -3/Armory | Identified Transdimensional Reconstructor 29121 | -3/Armory | Warped through subspace to slip node 29121 | -3/Armory | Discovered new exit (range 1) 29121 | -3/Armory | Identified exit to Lab 29123 | -3/Armory | Entered Lab 29123 | -3/Lab | Discovered exit to Research (range 9) 29132 | -3/Lab | Hidden lab's door opened automatically 29132 | -3/Lab | Sensor layout match revealed 29133 | -3/Lab | Gained access to the hidden lab's interior 29133 | -3/Lab | Unable to decrypt terminal 29198 | -3/Lab | Found Alien Artifact 29198 | -3/Lab | Identified Integrated Dissipator 29198 | -3/Lab | Installed Integrated Dissipator, increased core heat dissipation (+20) 29202 | -3/Lab | Found Transdimensional Reconstructor 29245 | -3/Lab | Found Alien Artifact 29265 | -3/Lab | Found Prototype Hackware 29267 | -3/Lab | Found Prototype Protection 29267 | -3/Lab | Identified Exp. Powered Armor 29271 | -3/Lab | Found Prototype Energy Cannon 29273 | -3/Lab | Found Prototype Energy Gun 29334 | -3/Lab | Found Alien Artifact 29381 | -3/Lab | Identified Core Reset Matrix 29381 | -3/Lab | Identified Core Regenerator 29381 | -3/Lab | Used Core Reset Matrix 29399 | -3/Lab | Identified Warp Cannon 29400 | -3/Lab | Identified Tachyon Dispersion Ray 29419 | -3/Lab | Entered Research 29419 | -2/Research | Evolved 2 slots: Power x1, Utility x1 29487 | -2/Research | Build established: Scavenger-Mutant 29713 | -2/Research | Spotted B-90 Cyclops 29714 | -2/Research | Discovered new exit (range 5) 29718 | -2/Research | Identified exit to Quarantine 29719 | -2/Research | Entered Quarantine 29720 | -2/Quarantine | Detected hypermatrix surge 29720 | -2/Quarantine | Sensed 11 artifacts in vicinity 29732 | -2/Quarantine | Found Subatomic Replicator 30135 | -2/Quarantine | Identified Quantum Router 30218 | -2/Quarantine | Discovered new exit (range 15) 30305 | -2/Quarantine | Spotted Alpha 7 30584 | -2/Quarantine | Found Hpw. Transdimensional Reconstructor 30586 | -2/Quarantine | Found Hpw. Transdimensional Reconstructor 30838 | -2/Quarantine | Found Sigix Terminator 30880 | -2/Quarantine | Spotted Fortress 30941 | -2/Quarantine | Discovered new exit (range 6) 30941 | -2/Quarantine | Discovered new exit (range 6) 30945 | -2/Quarantine | Identified exit to Protoforge 30948 | -2/Quarantine | Identified exit to Section 7 30958 | -2/Quarantine | Entered Section 7 30959 | -2/Section 7 | Detected hypermatrix surge 30959 | -2/Section 7 | Sensed 20 artifacts in vicinity 31086 | -2/Section 7 | Found Prototype Device 31086 | -2/Section 7 | Identified Active Sensor Suite 31160 | -2/Section 7 | Found Unknown Launcher 31230 | -2/Section 7 | Found Prototype Device 31230 | -2/Section 7 | Identified Exp. Thermal Shield 31315 | -2/Section 7 | Build established: Scavenger-Tank 31576 | -2/Section 7 | Spotted S7 Guard 31588 | -2/Section 7 | Warped through subspace 31630 | -2/Section 7 | Found Core Reset Matrix 31649 | -2/Section 7 | Incoming investigation squad redirected 31680 | -2/Section 7 | Destroyed S7 Guard 31701 | -2/Section 7 | Found Core Physics Calibrator 31708 | -2/Section 7 | Search patrols dispatched 31789 | -2/Section 7 | System corruption reached 10% 31888 | -2/Section 7 | Found Spacefold Activator 31903 | -2/Section 7 | Incoming investigation squad redirected 32129 | -2/Section 7 | Spotted Executioner 32129 | -2/Section 7 | Spotted Executioner 32140 | -2/Section 7 | Destroyed Executioner 32147 | -2/Section 7 | Destroyed Executioner 32184 | -2/Section 7 | Found Prototype Processor 32192 | -2/Section 7 | Found Exp. Core Analyzer 32208 | -2/Section 7 | Found Prototype Device 32208 | -2/Section 7 | Identified Adv. Kinecellerator 32214 | -2/Section 7 | Found Exp. Core Analyzer 32242 | -2/Section 7 | Build established: Scavenger-Assassin 32260 | -2/Section 7 | Found Transdimensional Reconstructor 32415 | -2/Section 7 | Found Integrated Reactor 32415 | -2/Section 7 | Installed Integrated Reactor, increased core energy generation (+10) 32473 | -2/Section 7 | Found LRC Inertial Stabilizer 32473 | -2/Section 7 | Installed LRC Inertial Stabilizer, increased mass support (+10) 32488 | -2/Section 7 | Core integrity fell below 50% 32532 | -2/Section 7 | Found Core Expander 32534 | -2/Section 7 | Found Core Expander 32536 | -2/Section 7 | Used Subatomic Replicator to replicate Warp Cannon 32545 | -2/Section 7 | Found Core Expander 32672 | -2/Section 7 | Spotted Executioner 32672 | -2/Section 7 | Spotted Executioner 32697 | -2/Section 7 | Destroyed Executioner 32708 | -2/Section 7 | First assault squad dispatched 32722 | -2/Section 7 | Destroyed Executioner 32765 | -2/Section 7 | Spotted Striker 32768 | -2/Section 7 | Spotted Striker 32783 | -2/Section 7 | Spotted Striker 32784 | -2/Section 7 | Spotted Striker 32786 | -2/Section 7 | Destroyed Striker 32796 | -2/Section 7 | Destroyed Striker 32807 | -2/Section 7 | Destroyed Striker 32812 | -2/Section 7 | Destroyed Striker 32840 | -2/Section 7 | System corruption reached 30% 32854 | -2/Section 7 | Identified Fusion Bomb Launcher 32857 | -2/Section 7 | Sensed 11 artifacts in vicinity 33049 | -2/Section 7 | Warped through subspace 33087 | -2/Section 7 | Spotted S7 Guard 33198 | -2/Section 7 | Discovered new exit (range 6) 33232 | -2/Section 7 | Incoming assault squad redirected 33277 | -2/Section 7 | Spotted Alpha 7 33284 | -2/Section 7 | Spotted B-99 Colossus 33343 | -2/Section 7 | Found Sigix Sheargun 33345 | -2/Section 7 | Found Sigix Sheargun 33346 | -2/Section 7 | Found Sigix Sheargun 33364 | -2/Section 7 | Build established: Scavenger-Ninja 33431 | -2/Section 7 | Integrated with Sigix Exoskeleton 33432 | -2/Section 7 | Installed Core Expander, added new Utility slot 33436 | -2/Section 7 | Installed Core Expander, added new Power slot 33438 | -2/Section 7 | Installed Core Expander, added new Propulsion slot 33448 | -2/Section 7 | Attached Tower Shield, gained temporary slots: Power, Propulsion x2, Utility x2, Weapon x2 33449 | -2/Section 7 | Identified Exp. Targeting Computer 33495 | -2/Section 7 | Used Core Regenerator, restored core integrity (+362) 33657 | -2/Section 7 | Warped through subspace 33736 | -2/Section 7 | Build established: Alien-Sigix 33778 | -2/Section 7 | Spotted Striker 33802 | -2/Section 7 | Destroyed Striker 33807 | -2/Section 7 | Spotted Striker 33807 | -2/Section 7 | Spotted Striker 33814 | -2/Section 7 | Core integrity fell below 20% 33821 | -2/Section 7 | Entered Access 33821 | -1/Access | Evolved 2 slots (calibrated): -Power x1, -Propulsion x1, Utility x4 33826 | -1/Access | Emitted hypermatrix ping 33831 | -1/Access | Assembled emerged from beneath the floor 34012 | -1/Access | Assembled emerged from beneath the floor 34214 | -1/Access | Spotted B-99 Colossus 34310 | -1/Access | Assembled emerged from beneath the floor 34420 | -1/Access | Warped through subspace 34448 | -1/Access | Core integrity fell below 50% 34448 | -1/Access | Garrison activated, responded to threat 34463 | -1/Access | Spotted Executioner 34468 | -1/Access | Destroyed Executioner 34480 | -1/Access | Sigix Exoskeleton integrity reduced to 80% 34524 | -1/Access | Spotted Striker 34532 | -1/Access | Destroyed Striker 34552 | -1/Access | Spotted Investigator 34553 | -1/Access | Scanned by Researcher 34555 | -1/Access | Destroyed 31 combat bots 34555 | -1/Access | Destroyed Investigator 34560 | -1/Access | System corruption reached 10% 34582 | -1/Access | Sigix Exoskeleton integrity reduced to 60% 34654 | -1/Access | Destroyed 34 combat bots 34664 | -1/Access | Discovered new exit (range 18) 34704 | -1/Access | Assembled emerged from beneath the floor 34732 | -1/Access | Assembled emerged from beneath the floor 34769 | -1/Access | Spotted Investigator 34787 | -1/Access | Destroyed Investigator 34801 | -1/Access | Spotted Striker 34803 | -1/Access | Spotted Striker 34803 | -1/Access | Spotted Executioner 34809 | -1/Access | Spotted Executioner 34809 | -1/Access | Spotted Striker 34812 | -1/Access | Destroyed Executioner 34814 | -1/Access | Destroyed Striker 34815 | -1/Access | Spotted Executioner 34824 | -1/Access | Destroyed Striker 34828 | -1/Access | Destroyed Striker 34830 | -1/Access | Destroyed Executioner 34830 | -1/Access | Destroyed Executioner 34857 | -1/Access | Destroyed 24 combat bots 34858 | -1/Access | Core integrity fell below 20% 34941 | -1/Access | Spotted Striker 34942 | -1/Access | Spotted Executioner 34943 | -1/Access | Destroyed Striker 34943 | -1/Access | Destroyed Striker 34944 | -1/Access | Destroyed Executioner 34951 | -1/Access | Fired Sigix Terminator 34951 | -1/Access | Destroyed Executioner 34951 | -1/Access | Destroyed Striker 34951 | -1/Access | Destroyed Executioner 34952 | -1/Access | Sigix Exoskeleton integrity reduced to 40% 34954 | -1/Access | Sterilization system engaged 34957 | -1/Access | Destroyed Striker 34984 | -1/Access | Destroyed 42 combat bots 34987 | *** | Heading to fleet! Last Messages --------------- 34957_ Quantum Shear penetrates L-61 Swordsman. 34959_ Destroyed Unknown Reactor. 34959_ U-05 Engineer builds a Wall. 34961_ Quantum Shear penetrates L-61 Swordsman. 34963_ Quantum Shear penetrates M-36 Artificer. 34963_ Destroyed Unknown Engine. 34963_ Quantum Shear penetrates L-61 Swordsman. 34963_ L-61 Swordsman destroyed. 34963_ U-05 Engineer builds a Wall. 34964_ System corrupted: Heat flow error (+258). 34966_ Power failure, Lgt. Quantum Reactor shutdown. 34968_ U-05 Engineer builds a Wall. 34972_ Acquired 30 matter. 34980_ #F IUY1QJ= MZ|#NJZCQZU5Z AF< 34981_ U-05 Engineer lays Concrete. 34983_ The Access Shell folds into the floor. 34984_ U-05 Engineer lays Concrete. 34986_ U-05 Engineer builds a Wall. [Achievement: Rambo] [Achievement: By A Hair] Map ----- +----------------------------------------------------+ | """" # # ###################### | | """" # [# # ############ | | """" # # !== # = ############ | | "" # # != # ############# | | # + != # = ############# | | # # # ############# | | ########### # + " " ############# | | ########### ######## # "Y" ############# | | ####################### # """ ############# | | ####################### ####################### | | #################### #################### | | #################### #################### | | #################### ################### | | #################### ################### | | #################### BB BB ###################+ | | #################### BB BB ######## | | #################### ######## | | ####################""""""""""######## !!! | | ####################""""""""""######## !!! %" | | #################### """"""""######## !! " ! | | ################ # """""######## * | | ############# # ######## [ | | ########### # ######## | | ######## ; ; ##### ! | | ###### ; "" ; ### * | | ##### ; "X ; ## | | #####"" ; ; ## | | " ; ; ;#;;;#+### # ! | | " ; ; ; u # # % #* | | " ;; ;;; ### # # | | = " ; ;; !#### #### | | " ;; ;;; " ### | | " ; ; ; / | | " ; ; ; ### #### | | " ; ; ; ### #### | | " ; ; ; ### #### | | #""%""" ; ; ; ### #### | | """""""!""""; ! ;;;;;"""""#### #### | | %! [] C | | =%%%= | | """"" " !*=";;;;;""""""""""""##+####### | | # """ " # | | # " " " # | | # " " " # | | # " " " # | | #" " " " # | | #% # " # # | | #" # ! # ## # | | =% # ### # | | #[ # * #### # | +----------------------------------------------------+ Best States ------------- Heat Dissipation 168 Energy Generation 131 Energy Capacity 630 Matter Stores 300 Matter Capacity 300 Sight Range 23 Robot Scan Range 20 Terrain Scan Density 85 Jamming Range 14 Power Amplification 30 Armor Coverage 2850 Resistance: KI 50 Resistance: TH 50 Resistance: EX 50 Resistance: EM 90 Resistance: I 50 Resistance: S 50 Resistance: P 50 Propulsion Shielding 90 Weapon Cycling 25 Evasion (%) 79 Targeting Accuracy 12 Target Analysis 8 Core Analysis 12 Recoil Reduction 6 Kinecelleration 50 Offensive Hacking 32 Defensive Hacking 25 Item Schematics ----------------- None Robot Schematics ------------------ None Fabricated ------------ Lrn. Sensor Array | x2 | -5/Factory Repaired ---------- Nothing Studied --------- None Alien Tech Used ----------------- Integrated Reactor Transdimensional Reconstructor Integrated Dissipator Core Reset Matrix Spacefold Activator LRC Inertial Stabilizer Subatomic Replicator High-powered Transdimensional Reconstructor Sigix Exoskeleton Sigix Sheargun Core Expander Core Regenerator Core Physics Calibrator Sigix Terminator Achievements -------------- By A Hair Rambo This Is My Hole Uncivil War Walls Are Suggestions Challenges ------------ None Game ------ Seed SwordSuperdensePenetrator Manual? 0 Play Time 07:12:51 Cumulative 506.8 hours Start 2026.09.15 @ 15:27:26 End 2026.09.16 @ 20:14:59 Sessions 7 Manual Loads 0 Difficulty Rogue Special Mode None Game No. 373 Rogue 373 Adventurer 0 Explorer 0 Win Type 2 Total 11 Types 4/0/5/2/0/0/0/0/0/0 Lore% 65 Gallery% 74 Achievement% 62 Wizard Run 0 Options --------- Layout 2 ASCII 0 Keyboard 1 Movement Vi Keybinds 0 Fullscreen 2 Font 32/Smallcaps Map View 77x44 Zoom Use 0% Tactical HUD 1 Map Filters NONE Filters NONE Steam 1 RUN: d5a8c4c2-5d49-4b97-b07b-0034cf2e10ba